Cogmind - Beta 16 @@@ ROGUE MODE // 2025.10.21 @ 20:38:25 Player: Bean Result: Destroyed by 77-QDH(R) with Subdweller Laser Performance ------------- Evolutions (0) 0 Regions Visited (3) 600 Robots Destroyed (15) 75 Value Destroyed (502) 502 Prototype IDs (0) 0 Alien Tech Used (0) 0 Bonus (58) 58 TOTAL SCORE: 1235 Bonus ------- Follower Combat Kills 60 Friendly Fire -2 Cogmind --------- Core Integrity 0/250 Matter 281/300 Energy 200/200 System Corruption 0% Temperature Cool (6) Movement Core (500) Ox9 Location -10/Subcaves Parts ------- > --- POWER (1) -------- Subdweller Power Source > --- PROPULSION (2) --- (None) > --- UTILITY (2) ------ Heat Sink Large Storage Unit > --- WEAPON (2) ------- Medium Laser Light Assault Rifle > --- INVENTORY (15) --- Subdweller Power Source Heat Sink Medium Matter Pod (100) V3-11A's Pendant Light Assault Rifle Grenade Launcher Peak State ------------ > --- POWER ------------ Light Nuclear Core > --- PROPULSION ------- Light Treads Light Treads > --- UTILITY ---------- Heat Sink Large Storage Unit > --- WEAPON ----------- Medium Laser Particle Gun > --- INVENTORY -------- Ion Engine Aluminum Leg Aluminum Leg Aluminum Leg Heat Sink Medium Matter Pod Medium Laser Light Assault Rifle Light Assault Rifle Grenade Launcher [Rating: 11] Favorites ----------- Power Ion Engine Engine Ion Engine Power Core Light Nuclear Core Propulsion Light Treads Treads Light Treads Leg Aluminum Leg Utility Large Storage Unit Device Heat Sink Storage Large Storage Unit Weapon Medium Laser Energy Gun Medium Laser Ballistic Gun Light Assault Rifle Launcher Grenade Launcher Build | -11 -10 -10 -10 ------- Run | Yrd Mat Min Sub Slots Evolved . | . . . . Power . | . . . . Propulsion . | . . . . Utility . | . . . . Weapon . | . . . . Parts Attached 18 | 6 4 1 7 Power 4 | 1 . 1 2 Engine 3 | 1 . . 2 Core 1 | . . 1 . Reactor . | . . . . Propulsion 5 | 2 . . 3 Treads 2 | 2 . . . Leg 3 | . . . 3 Wheel . | . . . . Hover . | . . . . Flight . | . . . . Utility 3 | 1 2 . . Device 1 | . 1 . . Storage 2 | 1 1 . . Processor . | . . . . Hackware . | . . . . Protection . | . . . . Artifact . | . . . . Weapon 6 | 2 2 . 2 Energy Gun 3 | 1 1 . 1 Energy Cannon . | . . . . Ballistic Gun 2 | 1 . . 1 Ballistic Cannon . | . . . . Launcher 1 | . 1 . . Special Weapon . | . . . . Impact Weapon . | . . . . Slashing Weapon . | . . . . Piercing Weapon . | . . . . Special Melee Weapon . | . . . . Unidentified Prototypes . | . . . . Parts Lost 10 | . . . 10 Power 3 | . . . 3 Propulsion 5 | . . . 5 Utility . | . . . . Weapon 2 | . . . 2 Highest Loss Streak 6 | . . . 6 To Critical Strikes . | . . . . Average Backups 6 | 1 4 8 8 Power . | . 1 1 . Propulsion 1 | . . 2 1 Utility 1 | . . 2 2 Weapon 2 | . 2 3 3 Tool/Special . | . . . . Unused Backups 7 | . . 2 5 Power 3 | . . 2 1 Propulsion . | . . . . Utility 3 | . . . 3 Weapon 1 | . . . 1 Tool/Special . | . . . . Average Slot Usage (%) 97 | . 98 100 95 Engine 9 | . 14 2 8 Core 2 | . . 11 2 Treads 20 | . 28 28 14 Leg 6 | . . . 12 Device 10 | . 5 14 14 Storage 16 | . 21 14 14 Energy Gun 24 | . 19 27 27 Ballistic Gun 3 | . 8 . . Peak Build Rating 11 | 6 7 10 11 Average Rating 7 | 4 6 8 8 On Entrance 5 | . 6 7 9 Avg Prop Armor Cover (%) . | . . . . Naked Turns . | . . . . Heaviest Build 33 | 13 33 30 31 Greatest Support 40 | 40 40 40 40 Greatest Overweight (x) 1 | . . . 1 Average Overweight (x) . | . . . . Largest Inventory Capacity 15 | 8 15 15 15 Average Capacity 14 | 7 14 15 15 Most Carried 11 | 4 7 10 11 Average Carried 6 | 1 3 8 8 Final Capacity 15 | 8 15 15 15 Final Carried 9 | 2 7 9 6 Class Distribution -------------------- 100% | Mutant Dominant Class ---------------- Mutant | -10/Materials Mutant | -10/Mines Mutant | -10/Subcaves Resources | -11 -10 -10 -10 ----------- Run | Yrd Mat Min Sub Matter Collected 539 | 226 83 102 128 Remotely . | . . . . Salvage Created 449 | . 113 102 234 Parts 22 | . 8 6 8 Haulers Intercepted . | . . . . Recyclers Shooed . | . . . . Parts Field Recycled . | . . . . Retrieved Matter . | . . . . Parts Self-Destructed 7 | . . . 7 Prevented . | . . . . Parts Restored . | . . . . Kills | -11 -10 -10 -10 ------- Run | Yrd Mat Min Sub Combat Hostiles Destroyed 14 | . 5 3 6 Guns 8 | . 2 . 6 AOE 6 | . 3 3 . Classes Destroyed 4 | . 3 . 1 Watcher 1 | . 1 . . Swarmer 3 | . 3 . . Grunt 5 | . 2 3 . Subdweller 6 | . . . 6 Best Kill Streak 3 | . 3 3 3 Combat Bots Only 3 | . 3 3 3 Max Kills in Single Turn 3 | . 3 3 1 Gunslinging . | . . . . Exploded 3 | . 3 3 . Melee . | . . . . Uniques/NPCs Destroyed . | . . . . Combat | -11 -10 -10 -10 -------- Run | Yrd Mat Min Sub Hostile Shots Fired 110 | . 31 1 78 Missed 40 | . 8 . 32 Hits 70 | . 23 1 46 Projectile 70 | . 23 1 46 Critical Strikes 2 | . . . 2 Damage Taken 1305 | . 302 12 991 Core 253 | . 45 . 208 Absorbed by Shields . | . . . . Core Remaining (%) 100 | 100 . . . Volleys Fired 73 | . 21 1 51 Largest 2 | . 2 2 2 Hottest 115 | . 80 80 115 Shots Fired 144 | . 42 2 100 Gun 141 | . 40 1 100 Cannon . | . . . . Launcher 3 | . 2 1 . Special . | . . . . Kinetic 28 | . 19 . 9 Thermal 113 | . 21 1 91 Explosive 3 | . 2 1 . Electromagnetic . | . . . . Robot Hit Streak 33 | . 5 3 33 Robot Miss Streak 3 | . 3 . 2 Penetration Max . | . . . . Secondary Targets . | . . . . Shots Hit Robots 112 | . 24 2 86 Core Hits 32 | . 11 6 15 Critical Kills . | . . . . Critical Parts Destroyed . | . . . . Critical Strikes 15 | . 3 . 12 Burn 15 | . 3 . 12 Melee Attacks . | . . . . Impact . | . . . . Slashing . | . . . . Piercing . | . . . . Sneak Attacks . | . . . . Combat Hostiles . | . . . . Follow-up Attacks . | . . . . Damage Inflicted 1435 | . 376 112 947 Guns 1198 | . 238 13 947 Cannons . | . . . . Explosions 237 | . 138 99 . Melee . | . . . . Ramming . | . . . . Kinetic 124 | . 115 . 9 Thermal 1074 | . 123 13 938 Explosive 237 | . 138 99 . Electromagnetic . | . . . . Impact . | . . . . Slashing . | . . . . Piercing . | . . . . Highest Corruption . | . . . . Average Corruption . | . . . . Corruption Purged . | . . . . Corruption Blocked . | . . . . Overload Shots . | . . . . Overflow Damage . | . . . . Projectiles . | . . . . Explosions . | . . . . Melee . | . . . . Knockbacks . | . . . . Impact . | . . . . Kinetic . | . . . . Secondary . | . . . . Self-Inflicted Damage . | . . . . Shots . | . . . . Rammed . | . . . . Targets Rammed . | . . . . Kicked . | . . . . Crushed . | . . . . Highest Temperature 334 | . 334 . . Average Temperature 135 | . 135 . . Received Heat Transfer 381 | . 147 6 228 Siege Activations . | . . . . Martial Activations . | . . . . Shielding Activations . | . . . . Robots Disrupted . | . . . . Combat Hostiles . | . . . . Robots Corrupted . | . . . . Combat Hostiles . | . . . . Parts Fried . | . . . . Impact Corruptions . | . . . . Robots Melted . | . . . . Combat Hostiles . | . . . . Parts Melted 6 | . 1 . 5 Heat Transferred 4144 | . 592 37 3515 Parts Sabotaged . | . . . . Parts Stolen . | . . . . Parts Stripped . | . . . . Power Chain Reactions . | . . . . Alert | -11 -10 -10 -10 ------- Run | Yrd Mat Min Sub Maximum Alert Level . | . . . . Low Security (%) 100 | 100 100 100 . Level 1 . | . . . . Level 2 . | . . . . Level 3 . | . . . . Level 4 . | . . . . Level 5 . | . . . . High Security . | . . . . Max Security . | . . . . Peak Influence 116 | . 116 97 . Initial 17 | . . 17 . Average 54 | . 59 65 . Influence Increases 319 | . 186 80 53 Destroy 0b10 Robot/C 200 | . 100 60 40 Destroy 0b10 Robot/NC 5 | . 5 . . Destroy Leader 42 | . 22 10 10 Allied During Kill 3 | . . . 3 Successful Hack 16 | . 16 . . Disable Machine 30 | . 30 . . Destroy Structure 23 | . 13 10 . Influence Decreases 319 | . 140 99 80 Entered New Map 44 | . . 29 15 Time Decay 245 | . 140 70 35 Lost Part 10 | . . . 10 Lost Ally 20 | . . . 20 Squads Dispatched . | . . . . Investigation . | . . . . Extermination . | . . . . Reinforcement . | . . . . Assault . | . . . . Garrison . | . . . . Intercept . | . . . . Searches Triggered . | . . . . Construction Impeded . | . . . . Haulers Reinforced . | . . . . Active Scanning Responses . | . . . . Cargo Convoy Interrupts . | . . . . Stealth | -11 -10 -10 -10 --------- Run | Yrd Mat Min Sub Distress Signals 2 | . 2 . . Communications Jammed . | . . . . Distress Signals . | . . . . Times Spotted 21 | . 8 3 10 Peak Tracking Total 4 | . 4 3 2 Tactical Retreats . | . . . . Traps | -11 -10 -10 -10 ------- Run | Yrd Mat Min Sub Traps Triggered . | . . . . Indirectly . | . . . . Trap Hack Attempts . | . . . . Triggered . | . . . . Disarmed . | . . . . Reprogrammed . | . . . . Reused . | . . . . Traps Extracted . | . . . . Installed . | . . . . Triggered . | . . . . Machines | -11 -10 -10 -10 ---------- Run | Yrd Mat Min Sub Machines Disabled 2 | . 2 . . Max in Single Turn 2 | . 2 . . Machines Repaired . | . . . . Machines Dismantled . | . . . . Machines Sabotaged . | . . . . Overloaded Fab Kills . | . . . . Hacking | -11 -10 -10 -10 --------- Run | Yrd Mat Min Sub Machines Accessed 3 | . 3 . . Terminals 2 | . 2 . . Fabricators . | . . . . Repair Stations . | . . . . Recycling Units 1 | . 1 . . Scanalyzers . | . . . . Garrison Access . | . . . . Total Hacks 12 | . 12 . . Successful 6 | . 6 . . Failed 6 | . 6 . . Catastrophic 1 | . 1 . . Database Lockouts . | . . . . Manual 10 | . 10 . . Terminals 10 | . 10 . . Fabricators . | . . . . Repair Stations . | . . . . Recycling Units 2 | . 2 . . Scanalyzers . | . . . . Garrison Access . | . . . . Terminal Hacks 1 | . 1 . . Locate Traps 1 | . 1 . . Fabricator Hacks . | . . . . Repair Station Hacks . | . . . . Recycling Unit Hacks . | . . . . Scanalyzer . | . . . . Garrison Access Hacks . | . . . . Unauthorized Hacks 5 | . 5 . . Terminals 4 | . 4 . . Botnet 2 | . 2 . . Operators 2 | . 2 . . Fabricators . | . . . . Repair Stations . | . . . . Recycling Units 1 | . 1 . . Reject 1 | . 1 . . Scanalyzers . | . . . . Garrison Access . | . . . . Data Cores Recovered . | . . . . Used . | . . . . Hacking Detections 2 | . 2 . . Full Trace Events . | . . . . Feedback Events . | . . . . Feedback Blocked . | . . . . Robot Schematics Acquired . | . . . . Robots Built . | . . . . Authchips . | . . . . Time . | . . . . Total Robot Build Rating . | . . . . Part Schematics Acquired . | . . . . Parts Built . | . . . . Authchips . | . . . . Time . | . . . . Total Part Build Rating . | . . . . Part Studies Acquired . | . . . . Parts Repaired . | . . . . Time . | . . . . Parts Recycled . | . . . . Recycled Matter . | . . . . Retrieved Matter . | . . . . Retrieved Components . | . . . . Parts Scanalyzed . | . . . . Part Schematics Acquired . | . . . . Parts Damaged . | . . . . Bothacking | -11 -10 -10 -10 ------------ Run | Yrd Mat Min Sub Used RIF Installer . | . . . . Robots Hacked . | . . . . Non-combat . | . . . . Combat . | . . . . Robot Hacks Applied . | . . . . Relay Couplers Released . | . . . . Fabnet Peak Effective % . | . . . . Robots Rewired . | . . . . Allies Hacked . | . . . . Hacks Repelled . | . . . . Allies | -11 -10 -10 -10 -------- Run | Yrd Mat Min Sub Total Allies 1 | . . 1 . Largest Group 1 | . . 1 1 Highest-Rated Group 31 | . . 31 31 Highest-Rated Ally 31 | . . 31 31 Total Orders . | . . . . Ally Attacks 8 | . . . 8 Total Damage 106 | . . . 106 Kills 2 | . . . 2 Allies Corrupted . | . . . . Allies Melted . | . . . . Intel | -11 -10 -10 -10 ------- Run | Yrd Mat Min Sub Active Infowar (turns) . | . . . . Robot Analysis Total . | . . . . Derelict Logs Recovered . | . . . . Drone Launches . | . . . . Drone Recoveries . | . . . . Exploration | -11 -10 -10 -10 ------------- Run | Yrd Mat Min Sub Turns Passed 1148 | 64 376 141 567 Spaces Moved 537 | 34 188 81 234 Core 3 | 3 . . . Treads 432 | 31 188 81 132 Legs 102 | . . . 102 Wheels . | . . . . Hover . | . . . . Flight . | . . . . Fastest Speed 50 | 50 160 160 160 Average Speed 165 | 150 160 160 173 Slowest Speed 190 | 160 160 160 190 Overloaded Moves . | . . . . Propulsion Burnouts . | . . . . Robots Hopped . | . . . . Potential Cave-ins . | . . . . Cave-ins Triggered . | . . . . Exploration Rate (%) 15 | 4 28 16 12 Regions Visited 3 Branch Regions 2 Pre-discovered Areas 1 | . . 1 . Known Exits Taken . | . . . . Unknown Exits Taken 3 | 1 1 1 . Scrap Searched . | . . . . Spaces Dug . | . . . . Terrain Destroyed 23 | . 13 10 . Melee . | . . . . Projectile . | . . . . AOE 23 | . 13 10 . Terrain Rammed . | . . . . Walls Destroyed . | . . . . Machines Disabled . | . . . . Actions | -11 -10 -10 -10 --------- Run | Yrd Mat Min Sub Total 660 | 47 224 90 299 Wait . | . . . . Move 534 | 33 187 80 234 Hop . | . . . . Pick Up 25 | 8 8 4 5 Fast Attach . | . . . . Attach 16 | 6 2 . 8 Detach . | . . . . Swap 8 | . 4 3 1 Drop 4 | . 2 2 . Fire 73 | . 21 1 51 Melee . | . . . . Ram . | . . . . Kick . | . . . . Crush . | . . . . Escape Stasis . | . . . . Rewire . | . . . . Trap . | . . . . Miscellaneous . | . . . . Route ------- -11/Scrapyard -10/Materials (discovered 2 exits: [*Min x2]) -10/Mines -10/Subcaves History --------- Turn | Location | Event 14 | -11/Scrapyard | Discovered new exit (range 16) 65 | -11/Scrapyard | Entered Materials 324 | -10/Materials | Build established: Mutant 331 | -10/Materials | Discovered new exit (range 11) 419 | -10/Materials | Discovered new exit (range 10) 441 | -10/Materials | Entered Mines 444 | -10/Mines | Escorted by a lone wolf Derelict 446 | -10/Mines | Met a Derelict bent on vengeance 464 | -10/Mines | Learned location of Storage (-9) 563 | -10/Mines | Discovered new exit (range 9) 582 | -10/Mines | Entered Subcaves 582 | -10/Subcaves | Accompanied by 1 ally 583 | -10/Subcaves | Approached by a straggling Scientist 785 | -10/Subcaves | Visited triangular shrine 794 | -10/Subcaves | Found Prototype Device 852 | -10/Subcaves | Core integrity fell below 50% 922 | -10/Subcaves | Lost 6 parts (2p3n1w) 1128 | -10/Subcaves | Core integrity fell below 20% 1149 | -10/Subcaves | Destroyed by 77-QDH(R) with Subdweller Laser Last Messages --------------- BN-LTD(R) destroyed. Acquired Sub. Power Source. Acquired 25 matter. ZX-0R1(c): "I think it's somewhere west of here" Acquired Sub. Power Source. ZX-0R1(c): "I think it's somewhere west of here" Subatomizers dissect the Sub. Monowheel. ZX-0R1(c): "I think it's somewhere west of here" Aluminum Leg destroyed. CZ-CIG(R) suffers critical hit (Burn). CZ-CIG(R) overheating. CZ-CIG(R) suffers critical hit (Burn). CZ-CIG(R) overheating. Med. Laser destroyed. Aluminum Leg destroyed. CZ-CIG(R) suffers critical hit (Burn). Disposable Heat Sink melted. CZ-CIG(R) destroyed. ZX-0R1(c): "I think it's somewhere west of here" Map ----- +----------------------------------------------------+ | ????????????????????## ""##???????????????????? | | ?????????????????????# ""###??????????????????? | | ?????????????????????## ###????????????????? | | ??????????????????###?# ###??????????????? | | ??????????????????# ### #??????????????? | | ??????????????????# ## #??????????????? | | ?????????????????## % ##?????????????? | | ?????????????????# #?????????????? | | ??????????######## = ###?????????????? | | ??????????# % #???????????????? | | ??????????# ## ##??????????????? | | ?????????## ## ### #??????????????? | | ?????????# ### ## #??????????????? | | ?????????## ### ##?## #??????????????? | | ??????????## #### ##???# #??????????????? | | ???????????##### #?#### ##?????????????? | | ?????????????## #?# #?????????????? | | ????????????## #?# #?????????????? | | ????????????# ##?# ##?????????????? | | ????????????# ####??## c #??????????????? | | ???????????# ##??????## ### #??????????????? | | ???????????####????????# #?# #??????????????? | | ???????????????????????# ##?###??????????????? | | ???????????????????????# ##??????????????????? | | ???????????????????????# #??????????????????? | | ???????????????????????# @##??????????????????? | | ???????????????????????# #???????????????????? | | ??????????????????????# * ???????????????????? | | ?????????????????????# R=%&???????????????????? | | ?????????????????????# " ## ??????????????????? | | ?????????????????????# " ??#??????????????????? | | ?????????????????????# " ?????????????????????? | | ?????????????????????# ""?????????????????????? | | ?????????????????????# "?????????????????????? | | ?????????????????????# ""?????????????????????? | | ?????????????????????? ""?????????????????????? | | ??????????????????????????????????????????????? | | ??????????????????????????????????????????????? | | ??????????????????????????????????????????????? | | ??????????????????????????????????????????????? | | ??????????????????????????????????????????????? | | ??????????????????????????????????????????????? | | ??????????????????????????????????????????????? | | ??????????????????????????????????????????????? | | ??????????????????????????????????????????????? | | ??????????????????????????????????????????????? | | ??????????????????????????????????????????????? | | ??????????????????????????????????????????????? | | ??????????????????????????????????????????????? | | ??????????????????????????????????????????????? | +----------------------------------------------------+ Best States ------------- Heat Dissipation 35 Energy Generation 15 Energy Capacity 250 Matter Stores 300 Matter Capacity 300 Sight Range 16 Terrain Scan Density 10 Evasion (%) 40 Recoil Reduction 2 Item Schematics ----------------- None Robot Schematics ------------------ None Fabricated ------------ Nothing Repaired ---------- Nothing Studied --------- None Alien Tech Used ----------------- None Achievements -------------- DATA ERROR: Steam Global Achievement% There's More Where That Came From Challenges ------------ None Game ------ Seed SmartArcShielding Manual? 0 Play Time 00:13:58 Cumulative 38.3 hours Start 2025.10.21 @ 20:25:04 End 2025.10.21 @ 20:38:25 Sessions 1 Manual Loads 0 Difficulty Rogue Special Mode None Game No. 93 Rogue 93 Adventurer 0 Explorer 0 Win Type - Total 0 Types 0/0/0/0/0/0/0/0/0/0 Lore% 24 Gallery% 32 Achievement% 17 Wizard Run 0 Options --------- Layout 2 ASCII 0 Keyboard 0 Movement Numpad Keybinds 0 Fullscreen 1 Font 24/Smallcaps Map View 50x44 Zoom Use 0% Tactical HUD 0 Map Filters NONE Filters NONE Steam 1 RUN: 58dc09c8-7e82-4b7c-9566-4ab6959faf6a